[Event "Belt and Road Women 2024"]
[Site "Yuecheng Shaoxing"]
[Date "2024.07.27"]
[Round "4.12"]
[White "Chen, Yining"]
[Black "Ha, Yihan"]
[Result "1-0"]
[ECO "D37"]
[WhiteElo "2300"]
[BlackElo "2166"]
[Annotator "RC"]
[PlyCount "205"]
[EventDate "2024.08.01"]
[EventType "swiss"]
[EventCountry "CHN"]
[SourceTitle "playchess.com"]
[Source "ChessBase"]
[SourceQuality "1"]
[TimeControl "5400+30"]

1. d4 {[%emt 0:00:05]} Nf6 {[%emt 0:00:10]} 2. c4 {[%emt 0:00:11]} e6 {[%emt 0:00:06]} 3. Nf3 {[%emt 0:00:41]} d5 {[%emt 0:00:10]} 4. Nc3 {[%emt 0:00:12]} Be7 {[%emt 0:00:08]} 5. Bf4 {[%emt 0:00:41]} O-O {[%emt 0:00:29]} 6. e3 {[%emt 0:00:12]} Nbd7 {[%emt 0:00:09]} 7. c5 {[%emt 0:00:42]} Nh5 {[%emt 0:00:15]} 8. Bd3 {[%emt 0:00:14]} Nxf4 {[%emt 0:00:34]} 9. exf4 {[%emt 0:00:06]} b6 {[%emt 0:00:34]} 10. b4 {[%emt 0:00:21]} a5 {[%emt 0:00:26]} 11. a3 {[%emt 0:00:12]} c6 {[%emt 0:01:16]} 12. O-O {[%emt 0:00:19]} Ba6 {[%emt 0:00:06]} 13. Bxa6 {[%emt 0:00:41]} Rxa6 {[%emt 0:00:03]} 14. Qe2 {[%emt 0:00:12]} Qa8 {[%emt 0:00:34]} 15. Rab1 {[%emt 0:10:46]} axb4 {[%emt 0:07:09]} 16. axb4 {[%emt 0:00:09]} bxc5 {[%emt 0:01:32]} 17. bxc5 {[%emt 0:00:46]} Ra3 {[%emt 0:01:40]} 18. Rfc1 {[%emt 0:03:15]} Bf6 {[%emt 0:00:38]} 19. Qd2 {[%emt 0:13:27]} g6 {[%emt 0:24:26]} 20. Ne5 {[%emt 0:11:54]} Bxe5 {[%emt 0:03:16]} 21. fxe5 {[%emt 0:00:14]} Kg7 {[%emt 0:01:37]} 22. h4 {[%emt 0:04:03]} Rb8 {[%emt 0:07:02]} 23. h5 {[%emt 0:10:09]} h6 {[%emt 0:05:26]} 24. hxg6 {[%emt 0:00:38]} fxg6 {[%emt 0:00:17]} 25. Rxb8 {[%emt 0:01:21]} Qxb8 {[%emt 0:01:08]} 26. Rb1 {[%emt 0:06:34]} Rb3 {[%emt 0:01:07]} 27. Rxb3 {[%emt 0:01:34]} Qxb3 {[%emt 0:00:04]} 28. Ne2 {[%emt 0:00:25]} Nf8 {[%emt 0:05:17]} 29. Kh2 {[%emt 0:01:46]} Qc4 {[%emt 0:02:58]} 30. Qe3 {[%emt 0:03:17]} Qc2 {[%emt 0:00:52]} 31. g4 {[%emt 0:03:35]} Qd1 {[%emt 0:02:47]} 32. Kg2 {[%emt 0:03:54]} Nd7 {[%emt 0:04:01]} 33. Qf3 {[%emt 0:02:39]} g5 {[%emt 0:03:20]} 34. Kh3 {[%emt 0:07:06]} Kg8 {[%emt 0:01:46]} 35. Kh2 {[%emt 0:03:28]} Nf8 {[%emt 0:01:06]} 36. Kg3 {[%emt 0:04:45]} Nd7 {[%emt 0:01:51]} 37. Qe3 {[%emt 0:01:43]} Qh1 {[%emt 0:01:51]} 38. f4 {[%emt 0:03:08]} Qh4+ {[%emt 0:04:03]} 39. Kf3 {[%emt 0:00:13]} Qh1+ {[%emt 0:09:09]} 40. Kf2 {[%emt 0:00:29]} Qh2+ {[%emt 0:00:31]} 41. Ke1 {[%emt 0:02:03]} Qh4+ {[%emt 0:02:31]} 42. Qg3 {[%emt 0:00:17]} Qh1+ {[%emt 0:04:18]} 43. Kd2 {[%emt 0:00:23]} Qb1 {[%emt 0:03:09]} 44. Qd3 {[%emt 0:00:51]} Qb2+ {[%emt 0:01:25]} 45. Qc2 {[%emt 0:00:25]} Qb4+ {[%emt 0:00:22]} 46. Qc3 {[%emt 0:01:14]} Qb1 {[%emt 0:00:38]} 47. Qd3 {[%emt 0:00:50]} Qb2+ {[%emt 0:00:42]} 48. Ke3 {[%emt 0:00:17]} gxf4+ {[%emt 0:00:17]} 49. Kxf4 {[%emt 0:00:32]} Nf8 {[%emt 0:00:53]} 50. Kg3 {[%emt 0:00:39]} Qa1 {[%emt 0:00:35]} 51. Qe3 {[%emt 0:00:19]} Qe1+ {[%emt 0:00:13]} 52. Qf2 {[%emt 0:00:10]} Qxf2+ {[%emt 0:00:52]} 53. Kxf2 {[%emt 0:00:03]} Kf7 {[%emt 0:00:31]} 54. Nf4 {[%emt 0:00:29]} Ng6 {[%emt 0:00:19]} 55. Nd3 {[%emt 0:00:07]} Ne7 {[%emt 0:00:24]} 56. Nf4 {[%emt 0:00:55]} Ng6 {[%emt 0:00:22]} 57. Nh5 {[%emt 0:00:03]} Ne7 {[%emt 0:00:40]} 58. Kg3 {[%emt 0:00:04]} Kg6 {[%emt 0:00:28]} 59. Nf4+ {[%emt 0:01:11]} Kf7 {[%emt 0:00:02]} 60. Kh3 {[%emt 0:00:11]} Ng8 {[%emt 0:01:17]} 61. Kh4 {[%emt 0:00:16]} Ne7 {[%emt 0:00:14]} 62. Kh5 {[%emt 0:00:07]} Ng8 {[%emt 0:00:07]} 63. Nd3 {[%emt 0:01:59]} Kg7 {[%emt 0:00:13]} 64. Nf4 {[%emt 0:01:46]} Kf7 {[%emt 0:00:05]} 65. Ng6 {[%emt 0:00:02]} Kg7 {[%emt 0:00:30]} 66. Nf4 {[%emt 0:00:16]} Kf7 {[%emt 0:00:06]} 67. Ng2 {[%emt 0:00:50]} Kg7 {[%emt 0:00:17]} 68. Ne3 {[%emt 0:00:17]} Ne7 {[%emt 0:00:50]} 69. Nc2 {[%emt 0:00:19]} Kh7 {[%emt 0:00:44]} 70. Nb4 {[%emt 0:00:30]} Kg7 {[%emt 0:00:34]} 71. Na6 {[%emt 0:00:06]} Ng8 {[%emt 0:00:16]} 72. Nc7 {[%emt 0:01:23]} Kf7 {[%emt 0:00:10]} 73. Na8 {[%emt 0:00:14]} Kg7 {[%emt 0:00:35]} 74. Nb6 {[%emt 0:01:08]} Ne7 {[%emt 0:00:56]} 75. Kh4 {[%emt 0:00:07]} Ng6+ {[%emt 0:00:37]} 76. Kg3 {[%emt 0:00:03]} Ne7 {[%emt 0:00:44]} 77. Nd7 {[%emt 0:01:19]} Ng6 {[%emt 0:00:30]} 78. Nf6 {[%emt 0:00:31]} Kf7 {[%emt 0:00:28]} 79. g5 {[%emt 0:00:41]} hxg5 {[%emt 0:01:16]} 80. Nh7 {[%emt 0:00:03]} Nf8 {[%emt 0:00:46]} 81. Nxg5+ {[%emt 0:00:21]} Ke7 {[%emt 0:00:06]} 82. Nh3 {[%emt 0:00:25]} Nd7 {[%emt 0:00:51]} 83. Nf2 {[%emt 0:00:50]} Kf7 {[%emt 0:00:18]} 84. Nd3 {[%emt 0:00:15]} Kg6 {[%emt 0:00:36]} 85. Kg4 {[%emt 0:00:08]} Kh6 {[%emt 0:00:19]} 86. Nf4 {[%emt 0:00:23]} Nf8 {[%emt 0:00:07]} 87. Nd3 {[%emt 0:01:26]} Ng6 {[%emt 0:00:16]} 88. Nb4 {[%emt 0:00:29]} Ne7 {[%emt 0:00:05]} 89. Kf4 {[%emt 0:00:09]} Kg6 {[%emt 0:00:20]} 90. Ke3 {[%emt 0:00:13]} Kg5 {[%emt 0:00:38]} 91. Na6 {[%emt 0:00:12]} Kf5 {[%emt 0:00:54]} 92. Nc7 {[%emt 0:00:17]} Ng6 {[%emt 0:00:15]} 93. Ne8 {[%emt 0:00:22]} Nf8 {[%emt 0:00:25]} 94. Nd6+ {[%emt 0:00:22]} Kg5 {[%emt 0:01:36]} 95. Nf7+ {[%emt 0:00:16]} Kf5 {[%emt 0:00:41]} 96. Nd8 {[%emt 0:00:07]} Kg6 {[%emt 0:00:37]} 97. Nxc6 {[%emt 0:00:04]} Kf7 {[%emt 0:00:14]} 98. Kf4 {[%emt 0:01:05]} Ke8 {[%emt 0:00:31]} 99. Kg5 {[%emt 0:00:10]} Kd7 {[%emt 0:00:40]} 100. Nb4 {[%emt 0:00:14]} Ke7 {[%emt 0:00:38]} 101. c6 {[%emt 0:00:18]} Kd8 {[%emt 0:00:29]} 102. Kf6 {[%emt 0:00:05]} Ke8 {[%emt 0:00:23]} 103. Kg7 {[%emt 0:00:25]} 1-0

[Event "Belt and Road Women 2024"]
[Site "Yuecheng Shaoxing"]
[Date "2024.07.27"]
[Round "4.13"]
[White "Wang, Yu A."]
[Black "Gu, Xiaobing"]
[Result "1/2-1/2"]
[ECO "B91"]
[WhiteElo "2234"]
[BlackElo "2135"]
[Annotator "RC"]
[PlyCount "87"]
[EventDate "2024.08.01"]
[EventType "swiss"]
[EventCountry "CHN"]
[SourceTitle "playchess.com"]
[Source "ChessBase"]
[SourceQuality "1"]
[TimeControl "5400+30"]

1. e4 {[%emt 0:00:01]} c5 {[%emt 0:00:04]} 2. Nf3 {[%emt 0:00:02]} d6 {[%emt 0:00:05]} 3. d4 {[%emt 0:00:01]} cxd4 {[%emt 0:00:05]} 4. Nxd4 {[%emt 0:00:02]} Nf6 {[%emt 0:00:07]} 5. Nc3 {[%emt 0:00:02]} a6 {[%emt 0:00:04]} 6. g3 {[%emt 0:00:06]} e5 {[%emt 0:00:05]} 7. Nb3 {[%emt 0:00:02]} Be7 {[%emt 0:01:38]} 8. Bg2 {[%emt 0:00:05]} b5 {[%emt 0:12:07]} 9. O-O {[%emt 0:05:00]} Bb7 {[%emt 0:04:45]} 10. a4 {[%emt 0:08:08]} b4 {[%emt 0:01:03]} 11. Nd5 {[%emt 0:00:55]} a5 {[%emt 0:07:24]} 12. Nxf6+ {[%emt 0:11:51]} Bxf6 {[%emt 0:00:06]} 13. Re1 {[%emt 0:00:29]} O-O {[%emt 0:03:45]} 14. Nd2 {[%emt 0:03:33]} Qc7 {[%emt 0:02:45]} 15. b3 {[%emt 0:04:30]} Rd8 {[%emt 0:09:57]} 16. Nc4 {[%emt 0:04:45]} Na6 {[%emt 0:08:59]} 17. Bb2 {[%emt 0:18:50]} Nc5 {[%emt 0:00:18]} 18. Qe2 {[%emt 0:10:57]} Rac8 {[%emt 0:10:42]} 19. f3 {[%emt 0:05:26]} Ne6 {[%emt 0:03:38]} 20. Qf2 {[%emt 0:06:52]} Nd4 {[%emt 0:02:53]} 21. Rad1 {[%emt 0:00:58]} d5 {[%emt 0:02:14]} 22. exd5 {[%emt 0:04:55]} Bxd5 {[%emt 0:00:05]} 23. Bxd4 {[%emt 0:02:02]} exd4 {[%emt 0:00:57]} 24. Bf1 {[%emt 0:00:44]} Re8 {[%emt 0:05:37]} 25. Bd3 {[%emt 0:00:46]} g6 {[%emt 0:04:02]} 26. Rxe8+ {[%emt 0:02:20]} Rxe8 {[%emt 0:00:03]} 27. Re1 {[%emt 0:00:07]} Rxe1+ {[%emt 0:03:27]} 28. Qxe1 {[%emt 0:00:01]} Bxf3 {[%emt 0:00:37]} 29. Qf2 {[%emt 0:00:15]} Qc6 {[%emt 0:00:22]} 30. Nxa5 {[%emt 0:00:16]} Qd5 {[%emt 0:00:52]} 31. Nc4 {[%emt 0:00:14]} Bg5 {[%emt 0:04:11]} 32. Qe1 {[%emt 0:02:18]} h5 {[%emt 0:01:07]} 33. Qe8+ {[%emt 0:01:17]} Kh7 {[%emt 0:01:20]} 34. Qb5 {[%emt 0:01:29]} Qd8 {[%emt 0:04:12]} 35. Qe5 {[%emt 0:01:41]} h4 {[%emt 0:01:52]} 36. Be4 {[%emt 0:03:17]} Bxe4 {[%emt 0:01:25]} 37. Qxe4 {[%emt 0:01:20]} f5 {[%emt 0:00:33]} 38. Qe6 {[%emt 0:00:21]} d3 {[%emt 0:01:42]} 39. cxd3 {[%emt 0:00:01]} Qd4+ {[%emt 0:00:05]} 40. Kg2 {[%emt 0:03:22]} Bf6 {[%emt 0:03:12]} 41. a5 {[%emt 0:00:39]} Qxd3 {[%emt 0:01:20]} 42. Qxf6 {[%emt 0:00:00]} Qe2+ {[%emt 0:00:20]} 43. Kg1 {[%emt 0:00:23]} Qe1+ {[%emt 0:00:24]} 44. Kg2 {[%emt 0:00:06]} 1/2-1/2

[Event "Belt and Road Women 2024"]
[Site "Yuecheng Shaoxing"]
[Date "2024.07.27"]
[Round "4.14"]
[White "Zhang, Lanlin"]
[Black "Li, Xueyi"]
[Result "1-0"]
[ECO "B12"]
[WhiteElo "2161"]
[BlackElo "2209"]
[Annotator "RC"]
[PlyCount "81"]
[EventDate "2024.08.01"]
[EventType "swiss"]
[EventCountry "CHN"]
[SourceTitle "playchess.com"]
[Source "ChessBase"]
[SourceQuality "1"]
[TimeControl "5400+30"]

1. e4 {[%emt 0:00:12]} c6 {[%emt 0:00:03]} 2. d4 {[%emt 0:00:07]} d5 {[%emt 0:00:05]} 3. e5 {[%emt 0:00:03]} Bf5 {[%emt 0:00:04]} 4. Nf3 {[%emt 0:00:04]} e6 {[%emt 0:00:22]} 5. Be2 {[%emt 0:00:05]} Nd7 {[%emt 0:02:48]} 6. O-O {[%emt 0:00:07]} Ne7 {[%emt 0:00:44]} 7. Nh4 {[%emt 0:02:10]} Bg6 {[%emt 0:00:55]} 8. Nxg6 {[%emt 0:00:05]} hxg6 {[%emt 0:00:05]} 9. Nd2 {[%emt 0:04:19]} Nf5 {[%emt 0:01:58]} 10. Nf3 {[%emt 0:00:25]} Be7 {[%emt 0:00:29]} 11. a4 {[%emt 0:05:02]} a5 {[%emt 0:08:06]} 12. c3 {[%emt 0:04:39]} Nf8 {[%emt 0:06:20]} 13. b4 {[%emt 0:04:15]} axb4 {[%emt 0:06:49]} 14. cxb4 {[%emt 0:00:10]} g5 {[%emt 0:11:13]} 15. b5 {[%emt 0:05:35]} Ng6 {[%emt 0:10:57]} 16. g3 {[%emt 0:00:31]} g4 {[%emt 0:04:48]} 17. Ne1 {[%emt 0:01:14]} c5 {[%emt 0:01:17]} 18. dxc5 {[%emt 0:12:37]} Bxc5 {[%emt 0:01:35]} 19. Bxg4 {[%emt 0:05:41]} Nh6 {[%emt 0:12:30]} 20. Be2 {[%emt 0:04:24]} Nxe5 {[%emt 0:03:03]} 21. Bb2 {[%emt 0:00:25]} f6 {[%emt 0:08:27]} 22. Nd3 {[%emt 0:04:50]} Nxd3 {[%emt 0:00:14]} 23. Bxd3 {[%emt 0:00:21]} Nf7 {[%emt 0:05:05]} 24. Qg4 {[%emt 0:02:09]} Kf8 {[%emt 0:04:42]} 25. Qxe6 {[%emt 0:00:42]} Ng5 {[%emt 0:00:09]} 26. Qf5 {[%emt 0:01:36]} Qb6 {[%emt 0:03:19]} 27. h4 {[%emt 0:03:22]} Qd6 {[%emt 0:01:51]} 28. Kg2 {[%emt 0:01:18]} Nf7 {[%emt 0:00:05]} 29. Rfe1 {[%emt 0:00:43]} b6 {[%emt 0:03:22]} 30. Re6 {[%emt 0:02:16]} Rh5 {[%emt 0:02:25]} 31. Qg4 {[%emt 0:03:14]} Nh6 {[%emt 0:01:17]} 32. Qe2 {[%emt 0:01:29]} Re5 {[%emt 0:00:32]} 33. Rxd6 {[%emt 0:05:25]} Rxe2 {[%emt 0:00:05]} 34. Rxf6+ {[%emt 0:00:08]} gxf6 {[%emt 0:00:04]} 35. Bxe2 {[%emt 0:00:03]} Ke7 {[%emt 0:00:21]} 36. Bf3 {[%emt 0:00:49]} Rd8 {[%emt 0:00:15]} 37. Re1+ {[%emt 0:00:07]} Kf7 {[%emt 0:00:14]} 38. Rc1 {[%emt 0:04:54]} Nf5 {[%emt 0:01:40]} 39. a5 {[%emt 0:00:07]} Nd4 {[%emt 0:00:26]} 40. Bxd4 {[%emt 0:00:05]} Bxd4 {[%emt 0:00:03]} 41. Rd1 {[%emt 0:00:03]} 1-0

[Event "Belt and Road Women 2024"]
[Site "Yuecheng Shaoxing"]
[Date "2024.07.27"]
[Round "4.15"]
[White "Bai, Xue"]
[Black "Zhang, Xiao"]
[Result "0-1"]
[ECO "C78"]
[WhiteElo "2114"]
[BlackElo "2193"]
[Annotator "RC"]
[PlyCount "54"]
[EventDate "2024.08.01"]
[EventType "swiss"]
[EventCountry "CHN"]
[SourceTitle "playchess.com"]
[Source "ChessBase"]
[SourceQuality "1"]
[TimeControl "5400+30"]

1. e4 {[%emt 0:00:04]} e5 {[%emt 0:00:04]} 2. Nf3 {[%emt 0:00:05]} Nc6 {[%emt 0:00:04]} 3. Bb5 {[%emt 0:00:06]} a6 {[%emt 0:01:15]} 4. Ba4 {[%emt 0:00:07]} Nf6 {[%emt 0:00:06]} 5. d3 {[%emt 0:01:57]} Bc5 {[%emt 0:00:49]} 6. O-O {[%emt 0:00:43]} b5 {[%emt 0:00:18]} 7. Bb3 {[%emt 0:00:06]} d6 {[%emt 0:00:14]} 8. c3 {[%emt 0:02:05]} O-O {[%emt 0:00:14]} 9. Re1 {[%emt 0:03:24]} Ba7 {[%emt 0:02:52]} 10. Nbd2 {[%emt 0:01:41]} Ne7 {[%emt 0:02:22]} 11. Nf1 {[%emt 0:00:27]} Ng6 {[%emt 0:02:31]} 12. Ng3 {[%emt 0:00:56]} Re8 {[%emt 0:07:58]} 13. a4 {[%emt 0:03:58]} c5 {[%emt 0:10:04]} 14. Bg5 {[%emt 0:00:32]} b4 {[%emt 0:06:01]} 15. Qd2 {[%emt 0:14:19]} bxc3 {[%emt 0:06:40]} 16. bxc3 {[%emt 0:00:06]} Rb8 {[%emt 0:15:29]} 17. Nh5 {[%emt 0:01:49]} Bg4 {[%emt 0:04:45]} 18. Bxf6 {[%emt 0:11:03]} gxf6 {[%emt 0:00:40]} 19. Qa2 {[%emt 0:07:59]} Bxh5 {[%emt 0:06:47]} 20. Bxf7+ {[%emt 0:00:08]} Kh8 {[%emt 0:00:11]} 21. Bxe8 {[%emt 0:00:07]} Qxe8 {[%emt 0:00:06]} 22. Nd2 {[%emt 0:01:34]} Nf4 {[%emt 0:01:57]} 23. Reb1 {[%emt 0:01:01]} Ra8 {[%emt 0:12:26]} 24. Rb7 {[%emt 0:01:26]} Qc8 {[%emt 0:04:59]} 25. Qb3 {[%emt 0:04:43]} c4 {[%emt 0:02:24]} 26. Qb1 {[%emt 0:02:21]} Qg4 {[%emt 0:01:33]} 27. g3 {[%emt 0:00:52]} Bxf2+ {[%emt 0:00:07]} 0-1

[Event "Belt and Road Women 2024"]
[Site "Yuecheng Shaoxing"]
[Date "2024.07.28"]
[Round "5.1"]
[White "Tan, Zhongyi"]
[Black "Lu, Miaoyi"]
[Result "1-0"]
[ECO "C45"]
[WhiteElo "2540"]
[BlackElo "2449"]
[Annotator "TA"]
[PlyCount "87"]
[EventDate "2024.08.01"]
[EventType "swiss"]
[EventCountry "CHN"]
[SourceTitle "playchess.com"]
[Source "ChessBase"]
[SourceQuality "1"]
[TimeControl "5400+30"]

{[%evp 14,87,37,22,29,13,27,17,19,15,84,65,132,133,139,153,147,149,137,122,201,167,177,96,82,59,114,40,645,143,135,133,305,177,192,165,188,170,156,175,185,185,176,189,196,199,192,203,204,202,200,199,182,200,195,181,231,231,237,230,193,0,827,873,573,341,2077,2052,2536,5102,5531,2395,5293,2659,29954,10618]} 1. e4 {[%emt 0:01:13]} e5 {[%emt 0:00:02]} 2. Nf3 {[%emt 0:00:11]} Nc6 {[%emt 0:00:01]} 3. d4 {[%emt 0:00:14]} exd4 {[%emt 0:00:06]} 4. Nxd4 {[%emt 0:00:06]} Bc5 {[%emt 0:00:54]} 5. Nb3 {[%emt 0:00:18]} Bb6 {[%emt 0:00:02]} 6. Nc3 {[%emt 0:00:12]} Qf6 {[%emt 0:00:10]} 7. Qe2 {[%emt 0:00:23]} Nge7 {[%emt 0:00:03]} 8. h4 {[%emt 0:00:25]} d6 {[%emt 0:05:23]} 9. Bg5 {[%emt 0:00:20]} Qg6 {[%emt 0:02:51]} 10. a4 {[%emt 0:00:54] And now a5 would win.} f6 {[%emt 0:11:24] The position is equal.} 11. Bd2 {[%emt 0:05:37]} Be6 {[%emt 0:09:29]} (11... Bg4 $11 12. f3 Be6) 12. Nd5 $1 $16 {[%emt 0:08:19] a5 would now be deadly.} Bxd5 {[%emt 0:06:02]} (12... a5 $14) 13. exd5 {[%emt 0:00:22][%cal Be4d5,Bd5c6,Bc6b7][%mdl 32]} Qxc2 {[%emt 0:01:59]} 14. dxc6 {[%emt 0:03:39]} Qxb3 {[%emt 0:00:06]} 15. cxb7 {[%emt 0:00:09]} Rb8 {[%emt 0:01:21]} 16. a5 {[%emt 0:04:10][%cal Ba4a5,Ba5a6][%mdl 32]} Bd4 {[%emt 0:10:12]} (16... Bc5 $16) 17. a6 $1 $18 {[%emt 0:00:13]} Qxb2 {[%emt 0:03:13]} 18. Ra4 {[%emt 0:17:35]} (18. Rd1 $18 {Hoping for Qb5+.} Qb6 19. h5) 18... Qb1+ $16 {[%emt 0:05:19]} 19. Qd1 {[%emt 0:00:05]} Qb6 {[%emt 0:05:40]} ({Better is} 19... Qxd1+ $1 $14 20. Kxd1 Bxf2) 20. Rb4 {[%emt 0:30:31]} (20. Bd3 $16 Bxf2+ 21. Kf1) 20... Bxf2+ $14 {[%emt 0:00:32]} 21. Ke2 {[%emt 0:00:03]} Qc5 {[%emt 0:00:11]} 22. Qa4+ {[%emt 0:01:18]} c6 $2 {[%emt 0:09:39]} (22... Kd8 $16) 23. Rc4 {[%emt 0:01:44]} (23. Rf4 $142) 23... Qd5 $18 {[%emt 0:02:43][%cal Oe8g8]} 24. Kxf2 {[%emt 0:07:30]} Qxd2+ {[%emt 0:00:08]} 25. Be2 {[%emt 0:00:04]} O-O {[%emt 0:10:31]} 26. Rd1 {[%emt 0:00:20][%mdl 1024] White has strong compensation.} Qb2 {[%emt 0:00:26]} 27. Rb4 {[%emt 0:04:43]} (27. Rxd6 Qb6+ 28. Kf3 Nf5) 27... Qe5 {[%emt 0:00:45]} 28. Re4 {[%emt 0:00:25]} Qc5+ {[%emt 0:01:38]} 29. Qd4 {[%emt 0:00:07]} Qxd4+ {[%emt 0:00:35]} 30. Rdxd4 {[%emt 0:00:05]} (30. Rexd4 $6 d5 $14) 30... Nf5 {[%emt 0:00:20][%cal Od6d5] aiming for ...d5!} 31. Rd2 {[%emt 0:00:26] Black must now prevent Bg4.} Rfd8 {[%emt 0:03:15]} 32. Bg4 $1 {[%emt 0:00:25]} d5 {[%emt 0:01:12]} 33. Re6 {[%emt 0:09:51]} Nd6 {[%emt 0:00:07]} 34. Rc2 $36 {[%emt 0:00:11][%mdl 2048] White is on the roll.} f5 {[%emt 0:06:36]} (34... Nxb7 $142 35. axb7 Rxb7 36. Rexc6 (36. Rcxc6 d4 $18) 36... d4) 35. Rxc6 {[%emt 0:03:46]} Ne4+ {[%emt 0:01:15] [#]} 36. Rxe4 $1 {[%emt 0:00:13][%mdl 512]} fxe4 {[%emt 0:00:36][%mdl 4096] Endgame. [#] KRR-KRB} 37. Rc8 $1 {[%emt 0:00:10]} Rf8+ {[%emt 0:00:48][%mdl 8192]} (37... d4 $11) 38. Ke3 {[%emt 0:00:02]} Kf7 {[%emt 0:01:48] Inhibits Be6+.} 39. Kd4 {[%emt 0:00:31]} e3 $2 {[%emt 0:01:27]} (39... h5 40. Rc7+ (40. Bxh5+ Ke6 $18) 40... Kf6 41. Rc6+ (41. Bxh5 g5 $18) 41... Ke7 42. Bxh5 Rf6 43. Rxf6 (43. Kxd5 $2 {perishes.} Rf5+ 44. Kxe4 Rxh5 $19) 43... gxf6 44. Kxd5 Kd7 45. Kxe4 (45. Bg4+ Kc7 $18) 45... Kc7) 40. Kxe3 {[%emt 0:00:29]} Ke7 {[%emt 0:00:50] [#]} 41. Rxf8 $1 {[%emt 0:01:24]} Kxf8 {[%emt 0:00:05]} 42. Kd4 {[%emt 0:00:03]} Ke7 {[%emt 0:00:30]} 43. Kxd5 {[%emt 0:00:05]} h5 {[%emt 0:00:52]} 44. Bh3 {[%emt 0:00:14] Weighted Error Value: White=0.33/Black=0.41.  Loses game:     	---       	Black=2      Missed win:     	White=1     	---        Mistake:       	White=3     	Black=5      OK:         	White=7     	Black=13     Best:        	White=9     	Black=5      Strong:       	White=3     	---        Brilliant:      	White=1     	---} 1-0

[Event "Belt and Road Women 2024"]
[Site "Yuecheng Shaoxing"]
[Date "2024.07.28"]
[Round "5.2"]
[White "Velpula Sarayu"]
[Black "Badelka, Olga"]
[Result "0-1"]
[ECO "C92"]
[WhiteElo "2384"]
[BlackElo "2389"]
[Annotator "RC"]
[PlyCount "84"]
[EventDate "2024.08.01"]
[EventType "swiss"]
[EventCountry "CHN"]
[SourceTitle "playchess.com"]
[Source "ChessBase"]
[SourceQuality "1"]
[TimeControl "5400+30"]

1. e4 {[%emt 0:00:25]} e5 {[%emt 0:00:05]} 2. Nf3 {[%emt 0:00:29]} Nc6 {[%emt 0:00:06]} 3. Bb5 {[%emt 0:00:32]} a6 {[%emt 0:00:06]} 4. Ba4 {[%emt 0:00:27]} Nf6 {[%emt 0:00:07]} 5. O-O {[%emt 0:00:33]} Be7 {[%emt 0:00:05]} 6. Re1 {[%emt 0:00:30]} b5 {[%emt 0:00:09]} 7. Bb3 {[%emt 0:00:29]} d6 {[%emt 0:00:06]} 8. c3 {[%emt 0:00:30]} O-O {[%emt 0:00:08]} 9. h3 {[%emt 0:00:30]} Bb7 {[%emt 0:00:12]} 10. d4 {[%emt 0:00:33]} Re8 {[%emt 0:00:06]} 11. Ng5 {[%emt 0:01:26]} Rf8 {[%emt 0:00:06]} 12. Nf3 {[%emt 0:00:36]} Re8 {[%emt 0:00:05]} 13. Nbd2 {[%emt 0:01:25]} Bf8 {[%emt 0:00:15]} 14. Bc2 {[%emt 0:02:21]} g6 {[%emt 0:01:01]} 15. d5 {[%emt 0:12:12]} Nb8 {[%emt 0:00:22]} 16. b3 {[%emt 0:00:09]} c6 {[%emt 0:00:33]} 17. c4 {[%emt 0:00:17]} Qc7 {[%emt 0:00:15]} 18. Nf1 {[%emt 0:02:44]} Rc8 {[%emt 0:00:06]} 19. Bd3 {[%emt 0:01:35]} Nbd7 {[%emt 0:01:12]} 20. Ng3 {[%emt 0:01:54]} bxc4 {[%emt 0:11:00]} 21. bxc4 {[%emt 0:00:28]} Nc5 {[%emt 0:04:00]} 22. Bf1 {[%emt 0:03:35]} a5 {[%emt 0:03:31]} 23. Bg5 {[%emt 0:02:22]} Nfd7 {[%emt 0:00:05]} 24. Nh2 {[%emt 0:03:21]} cxd5 {[%emt 0:00:34]} 25. cxd5 {[%emt 0:01:31]} Ba6 {[%emt 0:18:02]} 26. h4 {[%emt 0:01:54]} Bxf1 {[%emt 0:06:25]} 27. Rxf1 {[%emt 0:00:51]} h6 {[%emt 0:01:53]} 28. Be3 {[%emt 0:01:28]} h5 {[%emt 0:00:03]} 29. Bg5 {[%emt 0:09:05]} Bg7 {[%emt 0:01:29]} 30. Rc1 {[%emt 0:02:14]} a4 {[%emt 0:01:10]} 31. Nf3 {[%emt 0:03:37]} Nf6 {[%emt 0:17:26]} 32. Nd2 {[%emt 0:03:21]} Rab8 {[%emt 0:02:20]} 33. Be3 {[%emt 0:05:31]} Ng4 {[%emt 0:01:07]} 34. Qe2 {[%emt 0:09:17]} Rb2 {[%emt 0:04:15]} 35. f3 {[%emt 0:02:55]} Nxe3 {[%emt 0:00:22]} 36. Qxe3 {[%emt 0:00:02]} Rxa2 {[%emt 0:00:58]} 37. Nc4 {[%emt 0:03:49]} Nb3 {[%emt 0:05:33]} 38. Nxd6 {[%emt 0:05:49]} Nxc1 {[%emt 0:00:05]} 39. Nxc8 {[%emt 0:00:38]} Qc2 {[%emt 0:00:10]} 40. Rf2 {[%emt 0:02:04]} Qxf2+ {[%emt 0:01:44]} 41. Qxf2 {[%emt 0:00:05]} Rxf2 {[%emt 0:00:03]} 42. Kxf2 {[%emt 0:00:40]} a3 {[%emt 0:00:03]} 0-1